bitfinex/quotes_ETHUSD_20240827
["timestamp","ask_amount","ask_price","bid_price","bid_amount"]
[1724745911827,1.24270056,2696.6,2696.1,2.59633]
[1724745912321,1.24270056,2696.6,2696.0,3.26135206]
[1724745912628,2.59599,2696.5,2696.0,2.3798]
[1724745913938,1.24270056,2696.6,2696.0,2.3798]
[1724745914438,2.59578,2696.7,2696.0,6.21893056]
[1724745915503,3.83856056,2696.6,2696.0,2.3798]
[1724745915828,2.59596,2696.5,2696.0,2.3798]
[1724745916627,1.24270056,2696.6,2696.0,2.3798]
[1724745916993,1.24270056,2696.6,2696.0,4.97622]
[1724745917332,2.59577,2696.7,2696.0,4.97622]
[1724745917333,2.59577,2696.7,2696.0,6.84082362]
[1724745918399,2.59577,2696.7,2696.1,2.3378]
[1724745921092,1.24270056,2696.8,2696.0,4.46102362]
[1724745921407,7.28,2696.9,2696.5,2.3378]
[1724745921733,9.87558,2696.9,2696.5,2.3378]
[1724745922437,2.59577,2696.7,2696.5,2.3378]
[1724745922939,1.24270056,2696.8,2696.5,2.3378]
[1724745923099,9.87558,2696.9,2696.5,2.3378]
[1724745923302,7.28,2696.9,2696.5,2.3378]
[1724745924491,3.83812056,2697.1,2696.5,2.3378]
[1724745925343,6.43359056,2697.1,2696.5,2.3378]
[1724745925516,3.83812056,2697.1,2696.5,2.3378]
[1724745926584,3.83819056,2697.0,2696.5,2.3378]
[1724745926898,1.24270056,2697.0,2696.5,2.3378]
[1724745927101,2.59574,2696.8,2696.5,2.3378]
[1724745928001,2.59577,2696.7,2696.2,2.3055]
[1724745928219,2.59587,2696.6,2696.2,2.72251036]
[1724745928637,2.59596,2696.5,2696.2,2.72251036]
[1724745929062,3.83877056,2696.4,2696.0,0.62190306]
[1724745929362,3.83896056,2696.2,2696.0,2.2886]
[1724745929726,1.24270056,2696.2,2696.0,2.2886]
[1724745929961,3.83877056,2696.4,2696.0,2.2886]
[1724745930128,3.83860056,2696.6,2696.0,2.51746]
[1724745930435,2.59597,2696.5,2696.0,2.51746]
[1724745931340,2.59597,2696.5,2696.0,2.2886]
[1724745932267,2.59616,2696.3,2696.0,2.2886]
[1724745932558,2.59617,2696.3,2696.0,2.2886]
[1724745933869,2.59617,2696.3,2695.6,2.59679]
[1724745933870,1.24270056,2696.2,2695.6,2.59679]
[1724745934164,1.24270056,2696.2,2695.8,2.3543]
[1724745934460,3.83918056,2696.0,2695.5,2.2809]
[1724745934664,1.24270056,2695.8,2695.5,2.2809]
[1724745935945,3.83933056,2695.8,2695.5,2.2809]
[1724745936133,2.59663,2695.8,2695.5,2.2809]
[1724745936333,5.57078114,2695.7,2695.2,2.2809]
[1724745936583,2.59689,2695.6,2695.2,2.2809]
[1724745937386,2.59693,2695.5,2695.2,2.2809]
[1724745939081,2.59672,2695.7,2695.2,2.2809]
[1724745939241,2.59672,2695.7,2695.3,0.22809]
[1724745939678,2.59656,2695.9,2695.3,0.22809]
[1724745940053,2.59663,2695.8,2695.4,2.2809]
[1724745943477,9.87644,2696.0,2695.4,2.2809]
[1724745943658,7.28,2696.0,2695.4,2.2809]
[1724745943856,9.87645,2696.0,2695.6,2.3584]
[1724745948126,7.28,2696.0,2695.6,2.3584]
[1724745948333,2.59627,2696.2,2695.6,2.3584]
[1724745950138,2.59635,2696.1,2695.6,2.3584]
[1724745950903,7.28,2696.3,2695.7,2.59672]
[1724745951107,7.28,2696.3,2695.9,2.3267]
[1724745951519,22.2259,2696.6,2695.9,2.3267]
[1724745951717,2.59596,2696.5,2695.9,2.3267]
[1724745952204,22.2259,2696.6,2695.9,2.3267]
[1724745952205,2.59607,2696.4,2695.9,2.3267]
[1724745952496,2.59607,2696.4,2695.9,2.8685902]
[1724745956243,22.22588,2696.6,2695.9,5.4650602]
[1724745956430,22.22588,2696.6,2696.1,2.3103]
[1724745957158,2.59588,2696.6,2696.1,2.3103]
[1724745958257,2.59579,2696.7,2696.2,2.4626]
[1724745960430,2.5957,2696.8,2696.2,2.968502]
[1724745960638,2.59557,2696.9,2696.4,2.4063]
[1724745961071,2.59567,2696.8,2696.4,2.4063]
[1724745962878,2.59592,2696.6,2696.4,2.4063]
[1724745965093,2.59592,2696.6,2696.3,2.3214]
[1724745965210,2.59597,2696.5,2696.3,2.3214]
[1724745965563,2.59605,2696.4,2696.3,2.3214]
[1724745966400,2.59592,2696.6,2696.3,2.3214]
[1724745967410,2.59577,2696.7,2696.3,2.3214]
[1724745969421,2.5957,2696.8,2696.3,2.3214]
[1724745969720,2.5955,2697.0,2696.3,2.813171]
[1724745969939,2.59557,2696.9,2696.4,2.4038]
[1724745970603,5.59531,2697.2,2696.4,2.4038]
[1724745970604,2.59546,2697.1,2696.4,2.4038]
[1724745970804,2.59531,2697.2,2696.4,2.903791]
[1724745971210,2.59554,2697.0,2696.4,2.903791]
[1724745971718,2.59557,2696.9,2696.4,2.903791]
[1724745972796,2.59554,2697.0,2696.4,2.903791]
[1724745973022,2.59554,2697.0,2696.6,2.4038]
[1724745976730,2.59567,2696.8,2696.3,2.3926]
[1724745977198,2.59554,2697.0,2696.3,2.59614]
[1724745977406,5.19111,2697.0,2696.4,2.3882]
[1724745977611,5.19111,2697.0,2696.4,2.886634]
[1724745977787,2.5956,2696.9,2696.4,2.886634]
[1724745981939,2.59567,2696.8,2696.4,2.3882]
[1724745983044,5.1914,2696.8,2696.4,2.3882]
[1724745983244,2.59577,2696.7,2696.4,2.3882]
[1724745988761,2.59595,2696.5,2696.0,2.2888]
[1724745989061,1.23798043,2696.3,2696.0,2.2888]
[1724745989624,1.23798043,2696.4,2696.0,2.2888]
[1724745989840,3.83393043,2696.5,2696.0,2.2888]
[1724745990069,2.59595,2696.5,2696.0,2.777332]
[1724745994934,2.59608,2696.4,2696.0,2.777332]
[1724745995165,2.59595,2696.5,2696.0,2.2888]
[1724745995960,2.59622,2696.3,2696.0,2.2888]
[1724746000067,2.59627,2696.2,2696.0,2.2888]
[1724746002381,2.59634,2696.1,2695.7,2.2588]
[1724746002531,2.59634,2696.1,2695.7,2.8239937]
[1724746003779,2.97254692,2696.0,2695.7,2.2588]
[1724746004845,2.5966,2695.9,2695.7,2.2588]
[1724746005063,2.5966,2695.9,2695.3,2.2588]
[1724746005244,2.59663,2695.8,2695.3,3.304126]
[1724746005439,2.59663,2695.8,2695.3,2.2588]
[1724746009036,2.59672,2695.7,2695.3,2.2588]
[1724746009760,2.59683,2695.6,2695.3,2.2588]
[1724746010065,3.83621223,2695.6,2695.3,2.2588]
[1724746010478,2.59683,2695.6,2695.3,2.2588]
[1724746010637,2.59683,2695.6,2695.3,2.48468]
[1724746014550,3.83621223,2695.6,2695.3,2.48468]
[1724746014848,3.83621223,2695.6,2695.3,2.2588]
[1724746015395,2.59683,2695.6,2695.3,2.2588]
[1724746015546,3.83621223,2695.6,2695.3,2.2588]
[1724746016995,2.59692,2695.5,2695.3,2.2588]
[1724746017949,3.83621223,2695.6,2695.3,2.2588]
[1724746018150,2.59683,2695.6,2695.3,2.2588]
[1724746018391,2.59683,2695.6,2695.5,2.3405]
[1724746019991,2.59665,2695.8,2695.5,2.3405]
[1724746020702,2.59679,2695.7,2695.5,2.3405]
[1724746021929,3.83617223,2695.7,2695.5,2.3405]
[1724746022168,2.59682,2695.6,2695.5,2.3405]
[1724746022419,2.59682,2695.6,2695.0,2.3981]
[1724746022632,2.59682,2695.6,2695.1,0.62349022]
[1724746023583,2.59692,2695.5,2695.1,0.62349022]
[1724746024107,3.83630223,2695.5,2695.1,0.62349022]
[1724746024282,1.23938223,2695.5,2695.1,0.62349022]
[1724746025003,3.83630223,2695.5,2695.1,0.62349022]
[1724746025872,2.59682,2695.6,2695.0,2.3981]
[1724746025873,1.23938223,2695.3,2695.0,2.3981]
[1724746026083,3.83675223,2695.1,2694.6,2.3505]
[1724746026283,1.23938223,2695.0,2694.6,2.3505]
[1724746026480,2.59737,2695.1,2694.7,0.23505]
[1724746026481,3.83675223,2695.1,2694.7,0.23505]
[1724746026781,1.23938223,2695.0,2694.7,0.23505]
[1724746027037,3.83675223,2695.1,2694.7,0.23505]
[1724746029426,1.23938223,2694.9,2694.6,2.3505]
[1724746029746,3.83679223,2695.0,2694.6,2.3505]
[1724746032125,2.5975,2694.9,2694.6,2.3505]
[1724746032333,2.5976,2694.8,2694.6,2.3505]
[1724746032631,3.83711223,2694.7,2694.4,2.2514]
[1724746032932,3.83727223,2694.5,2693.9,2.2514]
[1724746033084,3.83727223,2694.5,2694.0,2.2514]
[1724746033288,3.83727223,2694.5,2694.1,0.484985]
[1724746033689,3.83727223,2694.5,2694.0,2.2514]
[1724746037739,2.59773,2694.7,2694.0,4.84974]
[1724746037953,3.83711223,2694.7,2694.0,4.84974]
[1724746038438,3.83711223,2694.7,2694.0,2.2514]
[1724746038439,6.43489223,2694.7,2694.0,2.2514]
[1724746038704,2.59761,2694.8,2694.2,2.3951]
[1724746039002,3.83690223,2694.9,2694.2,4.99326]
[1724746039604,2.59752,2694.9,2694.3,2.59807]
[1724746039844,25.88291223,2695.1,2694.5,4.99296]
[1724746039845,22.22733,2695.1,2694.5,4.99296]
[1724746040045,22.22733,2695.1,2694.6,2.3951]
[1724746041717,2.5974,2695.0,2694.6,2.3951]
[1724746044096,9.87733,2695.1,2694.6,2.3951]
[1724746044672,2.5974,2695.0,2694.6,2.3951]
[1724746044995,2.5974,2695.0,2694.6,3.10664835]
[1724746049437,2.5975,2694.9,2694.6,3.10664835]
[1724746051049,2.5975,2694.9,2694.6,2.3951]
[1724746052652,2.59769,2694.7,2694.3,2.4749]
[1724746054772,2.5975,2694.9,2694.3,2.4749]
[1724746054773,2.59761,2694.8,2694.3,2.4749]
[1724746054979,2.59771,2694.7,2694.3,2.4749]
[1724746055159,2.59771,2694.7,2694.3,3.15464962]
[1724746057479,2.5975,2694.9,2694.3,0.67974962]
[1724746057669,2.5975,2694.9,2694.4,2.3804]
[1724746060508,9.87735,2695.1,2694.5,2.373]
[1724746062171,2.5974,2695.0,2694.5,2.373]
[1724746064907,2.59713,2695.3,2694.8,1.23938223]
[1724746065151,2.59713,2695.3,2694.9,2.4225]
[1724746065618,7.28,2695.4,2694.9,2.4225]
[1724746065778,9.87703,2695.4,2694.9,2.4225]
[1724746068082,2.59711,2695.3,2694.9,2.4225]
[1724746070174,2.59711,2695.3,2695.0,2.4225]
[1724746080495,2.59704,2695.4,2695.0,2.4225]
[1724746083007,2.59713,2695.3,2695.0,2.4225]
[1724746083210,2.59721,2695.2,2695.0,2.4225]
[1724746085337,2.59713,2695.3,2695.0,2.4225]
[1724746089307,1.23938223,2695.4,2695.0,2.4225]
[1724746092046,3.83640223,2695.4,2695.0,2.4225]
[1724746098348,2.59702,2695.4,2695.0,2.4225]
[1724746101409,2.59712,2695.3,2695.0,2.4225]
[1724746101892,2.59722,2695.2,2695.0,2.4225]
[1724746102492,2.59722,2695.2,2694.5,2.59781]
[1724746102493,2.59751,2694.9,2694.5,2.3253]
[1724746103410,2.59766,2694.8,2694.5,2.3253]
[1724746105390,2.59769,2694.7,2694.2,2.3253]
[1724746108269,2.59778,2694.6,2694.2,2.3253]
[1724746108609,3.83716223,2694.6,2694.2,2.94160322]
[1724746108770,3.83716223,2694.6,2694.2,2.3253]
[1724746109965,2.59792,2694.5,2694.2,2.3253]
[1724746114911,2.59769,2694.7,2694.2,2.3253]
[1724746115107,2.59769,2694.7,2694.2,3.56468223]
[1724746117898,2.59769,2694.7,2694.3,2.4076]
[1724746119742,2.59779,2694.6,2694.3,2.4076]
[1724746120023,2.59769,2694.7,2694.3,2.4076]
[1724746120237,2.5976,2694.8,2694.3,2.77229822]
[1724746120533,2.59753,2694.9,2694.3,2.77229822]
[1724746120888,2.5976,2694.8,2694.3,2.77229822]
[1724746122291,2.59769,2694.7,2694.3,2.77229822]
[1724746122486,2.59769,2694.7,2694.3,2.4076]
[1724746136376,2.59789,2694.5,2694.3,2.4076]
[1724746136588,2.59798,2694.4,2694.0,2.414]
[1724746138785,3.83727223,2694.5,2694.0,2.414]
[1724746140038,2.598,2694.4,2694.0,2.414]
[1724746140236,2.59816,2694.3,2694.0,2.414]
[1724746140439,2.59816,2694.3,2693.6,2.414]
[1724746140440,2.59827,2694.1,2693.6,2.414]
[1724746140853,3.83754223,2694.3,2693.6,2.414]
[1724746140854,3.83754223,2694.3,2693.6,3.65338223]
[1724746141181,2.59818,2694.2,2693.7,2.414]
[1724746141385,3.18735773,2694.2,2693.7,2.414]
[1724746146005,2.59828,2694.1,2693.7,2.414]
[1724746156860,2.59838,2694.0,2693.7,2.414]
[1724746157593,2.59848,2693.9,2693.7,2.414]
[1724746158628,5.19703,2693.9,2693.7,2.414]
[1724746159209,2.59848,2693.9,2693.7,2.414]
[1724746162260,2.59818,2694.2,2693.7,2.6554]
[1724746162599,7.28,2694.4,2693.9,5.07375]
[1724746162854,7.28,2694.4,2694.1,2.4753]
[1724746164542,9.87798,2694.4,2694.1,2.4753]
[1724746165170,2.59817,2694.2,2694.1,2.4753]
[1724746167125,2.59817,2694.2,2693.7,2.2891]
[1724746167942,5.19643,2694.2,2693.7,2.2891]
[1724746168138,2.59817,2694.2,2693.7,2.2891]
[1724746168648,2.59862,2693.8,2693.4,2.2891]
[1724746171465,3.83800223,2693.8,2693.4,2.2891]
[1724746172958,2.59862,2693.8,2693.4,2.2891]
[1724746173872,2.59847,2693.9,2693.4,2.2891]
[1724746175844,2.59856,2693.8,2693.4,2.2891]
[1724746180240,2.59876,2693.6,2693.4,2.2891]
[1724746182139,3.83794223,2693.8,2693.4,2.2891]
[1724746182938,2.5984,2694.0,2693.4,2.2891]
[1724746183139,2.59846,2693.9,2693.4,2.2891]
[1724746186136,3.83794223,2693.8,2693.4,2.2891]
[1724746186343,1.23938223,2693.6,2693.4,2.2891]
[1724746187377,6.43703223,2693.6,2693.2,2.3397]
[1724746187536,2.59885,2693.5,2693.2,2.3397]
[1724746187778,1.23938223,2693.4,2693.2,2.3397]
[1724746190172,1.23938223,2693.4,2693.0,2.3397]
[1724746190680,2.59904,2693.3,2693.0,2.3397]
[1724746191055,1.23938223,2693.2,2693.0,2.3397]
[1724746191272,2.59933,2693.0,2692.6,2.3397]
[1724746194881,3.83871223,2693.0,2692.6,2.3397]
[1724746195232,3.83871223,2693.0,2692.4,4.9396]
[1724746196196,2.59933,2693.0,2692.4,6.17898223]
[1724746196390,2.59933,2693.0,2692.6,2.3397]
[1724746197265,3.83871223,2693.0,2692.6,2.3397]
[1724746197482,2.59933,2693.0,2692.6,2.3397]
[1724746198895,2.59944,2692.9,2692.6,2.3397]
[1724746199261,2.59944,2692.9,2692.4,2.3397]
[1724746200857,2.59954,2692.8,2692.4,2.3397]
[1724746201295,2.59954,2692.8,2692.4,2.95761722]
[1724746202367,2.59933,2693.0,2692.5,2.3397]
[1724746203504,2.59916,2693.2,2692.6,2.3397]
[1724746203802,2.59931,2693.1,2692.6,2.3397]
[1724746205105,2.59934,2693.0,2692.6,2.3397]
[1724746209626,3.83854223,2693.2,2692.7,2.3203]
[1724746209627,2.59923,2693.1,2692.7,2.3203]
[1724746210932,2.59933,2693.0,2692.7,2.3203]
[1724746211299,2.59944,2692.9,2692.7,2.3203]
[1724746211899,2.59933,2693.0,2692.7,2.3203]
[1724746212203,2.59963,2692.7,2692.4,2.3203]
[1724746214214,2.59949,2692.9,2692.4,2.3203]
[1724746214714,2.59949,2692.9,2692.6,2.3203]
[1724746216134,2.59936,2693.0,2692.6,2.3203]
[1724746217530,2.59944,2692.9,2692.6,2.3203]
[1724746222447,2.59954,2692.8,2692.6,2.3203]
[1724746223830,2.59944,2692.9,2692.6,2.3203]
[1724746227460,5.19859,2693.1,2692.6,2.3203]
[1724746227815,2.59935,2693.0,2692.6,2.3203]
[1724746230785,2.59958,2692.8,2692.6,2.3203]
[1724746232536,2.59962,2692.7,2692.3,2.3606]
[1724746235398,3.83900223,2692.7,2692.3,2.3606]
[1724746235701,2.59973,2692.6,2692.3,2.3606]
[1724746235864,2.59962,2692.7,2692.3,2.3606]
[1724746239080,2.59972,2692.6,2692.3,2.3606]
[1724746240026,2.59982,2692.5,2692.3,2.3606]
[1724746243650,2.59982,2692.5,2692.1,2.2594]
[1724746251984,2.59962,2692.7,2692.1,2.2594]
[1724746252279,2.59962,2692.7,2692.2,0.60990422]
[1724746253104,2.59962,2692.7,2692.3,2.4354]
[1724746253810,2.59944,2692.9,2692.3,2.4354]
[1724746254115,2.59953,2692.8,2692.3,2.4354]
[1724746254307,2.59963,2692.7,2692.3,2.4354]
[1724746257007,2.59978,2692.6,2692.3,2.4354]
[1724746259613,2.59984,2692.5,2692.3,2.4354]
[1724746259924,2.59984,2692.5,2692.1,2.4354]
[1724746260212,2.59999,2692.4,2692.1,2.4354]
[1724746260375,2.59984,2692.5,2692.1,2.4354]
[1724746261359,5.19975,2692.5,2692.1,2.4354]
[1724746261652,2.59992,2692.4,2692.1,2.4354]
[1724746262418,3.83954223,2692.2,2691.6,2.4427]
[1724746262713,3.11411422,2692.4,2691.6,2.4427]
[1724746262714,1.23938223,2692.0,2691.6,2.4427]
[1724746263295,3.83964223,2692.1,2691.6,2.4427]
[1724746263594,2.60026,2692.1,2691.6,2.4427]
[1724746263797,2.60045,2691.9,2691.6,2.4427]
[1724746264005,2.60045,2691.9,2691.1,2.60114]
[1724746264006,3.83994223,2691.8,2691.2,2.4427]
[1724746264198,2.60045,2691.9,2691.2,2.4427]
[1724746264199,3.83999223,2691.7,2691.2,2.4427]
[1724746266263,1.23938223,2691.6,2691.2,2.4427]
[1724746266399,2.60061,2691.7,2690.8,2.4427]
[1724746266400,3.84027223,2691.4,2690.8,2.4427]
[1724746266731,2.60089,2691.4,2690.8,2.4427]
[1724746267132,1.23938223,2691.4,2690.8,2.4427]
[1724746267331,3.84028223,2691.4,2690.8,2.4427]
[1724746267788,2.60101,2691.3,2690.8,2.4427]
[1724746270396,3.84039223,2691.3,2690.8,2.4427]
[1724746270597,2.60101,2691.3,2690.8,2.4427]
[1724746271297,2.60101,2691.3,2690.8,3.68208223]
[1724746271723,2.60101,2691.3,2690.8,2.4427]
[1724746272505,3.84022223,2691.5,2690.8,3.07106322]
[1724746272706,3.84022223,2691.5,2690.8,2.4427]
[1724746273305,7.540061,2691.6,2690.8,2.4427]
[1724746273514,7.28,2691.6,2691.0,2.4833]
[1724746274903,9.88071,2691.6,2691.0,2.4833]
[1724746275251,7.28,2691.6,2691.1,1.23938223]
[1724746275557,7.28,2691.6,2690.4,2.60179]
[1724746275558,7.28,2691.6,2691.5,2.4833]
[1724746277126,7.28,2691.6,2691.2,2.4833]
[1724746277437,9.8807,2691.6,2691.2,2.4833]
[1724746277635,7.28,2691.6,2691.2,2.4833]
[1724746277803,7.28,2691.6,2691.2,3.72268223]
[1724746278003,7.28,2691.6,2691.2,4.61518345]
[1724746278421,9.88042,2691.9,2691.2,5.97679122]
[1724746278628,11.11980223,2691.9,2691.2,5.97679122]
[1724746279941,2.60059,2691.7,2691.2,3.37580122]
[1724746280241,2.60059,2691.7,2691.2,2.4833]
[1724746281541,11.11983223,2691.9,2691.2,2.4833]
[1724746282669,7.28,2691.9,2691.4,2.3668]
[1724746282972,9.88041,2691.9,2691.4,2.3668]
[1724746283177,2.6005,2691.8,2691.4,2.3668]
[1724746285462,2.6006,2691.7,2691.4,2.3668]
[1724746286480,2.6006,2691.7,2691.2,2.3668]
[1724746288875,2.60069,2691.6,2691.2,2.3668]
[1724746289044,6.44105223,2691.5,2690.9,2.2978]
[1724746289246,2.60088,2691.4,2690.9,2.2978]
[1724746289788,2.601,2691.3,2690.9,2.2978]
[1724746291849,3.84019223,2691.5,2690.9,2.2978]
[1724746292045,3.84019223,2691.5,2690.9,4.89912]
[1724746292046,2.60081,2691.5,2690.9,4.89912]
[1724746292242,2.60081,2691.5,2690.9,2.2978]
[1724746292438,2.60088,2691.4,2690.9,2.2978]
[1724746292728,2.60081,2691.5,2690.9,5.51300222]
[1724746293180,2.60081,2691.5,2690.9,2.91166222]
[1724746294381,2.60081,2691.5,2690.9,2.2978]
[1724746295460,2.60081,2691.5,2691.0,2.2978]
[1724746295781,2.60081,2691.5,2691.1,2.2978]
[1724746298158,7.28,2691.6,2691.1,2.2978]
[1724746299152,9.88074,2691.6,2691.1,2.2978]
[1724746299376,7.28,2691.6,2691.1,2.2978]
[1724746299576,2.60088,2691.4,2691.1,2.2978]
[1724746302349,2.60078,2691.5,2691.1,2.2978]
[1724746307605,7.28,2691.6,2691.1,2.60114]
[1724746307786,7.28,2691.6,2691.4,2.2777]
[1724746308087,9.88036,2692.0,2691.4,2.2777]
[1724746308333,2.6004,2691.9,2691.4,2.2777]
[1724746311887,2.6004,2691.9,2691.2,2.2777]
[1724746311888,1.23938223,2691.5,2691.2,2.2777]
[1724746312092,1.23938223,2691.3,2690.8,2.2777]
[1724746313335,5.32939167,2691.5,2690.9,2.2777]
[1724746313336,2.60084,2691.5,2690.9,2.2777]
[1724746313629,5.20171,2691.5,2690.9,2.2777]
[1724746314388,2.60088,2691.4,2690.9,2.2777]
[1724746315425,2.60088,2691.4,2691.0,2.2777]
[1724746320792,2.60098,2691.3,2691.0,2.2777]
[1724746321322,3.84036223,2691.3,2690.6,2.2777]
[1724746321521,2.60116,2691.1,2690.6,2.2777]
[1724746325642,3.84036223,2691.3,2690.7,2.2624]
[1724746326311,2.60107,2691.2,2690.7,2.2624]
[1724746330764,2.60116,2691.1,2690.7,2.2624]
[1724746336685,3.84054223,2691.1,2690.7,2.2624]
[1724746336873,2.60128,2691.0,2690.4,2.3805]
[1724746337752,2.60136,2690.9,2690.4,2.3805]
[1724746337985,4.48493245,2690.9,2690.4,2.3805]
[1724746338414,2.60146,2690.8,2690.4,2.3805]
[1724746339999,3.84084223,2690.8,2690.4,2.3805]
[1724746340309,2.60146,2690.8,2690.4,2.3805]
[1724746340988,2.60146,2690.8,2690.1,1.23938223]
[1724746340989,2.60203,2690.2,2690.1,2.3805]
[1724746341184,1.23938223,2690.2,2690.1,2.3805]
[1724746342420,3.84141223,2690.3,2690.1,2.3805]
[1724746342620,2.60177,2690.5,2690.1,2.3805]
[1724746342921,3.84115223,2690.5,2690.1,2.3805]
[1724746343304,2.60184,2690.4,2690.1,2.3805]
[1724746347379,2.60196,2690.3,2690.1,2.3805]
[1724746358155,2.60196,2690.3,2690.0,0.0433923]
[1724746367727,2.60203,2690.2,2690.0,0.0433923]
[1724746371071,2.60196,2690.3,2690.0,0.0433923]
[1724746376191,2.60204,2690.2,2690.0,0.0433923]
[1724746377257,2.60196,2690.3,2690.0,0.0433923]
[1724746381383,2.60204,2690.2,2690.0,0.0433923]
[1724746384109,4.48565445,2690.3,2690.0,0.0433923]
[1724746384110,3.84151223,2690.1,2690.0,0.0433923]
[1724746387207,2.60213,2690.1,2690.0,0.0433923]
[1724746387408,7.92924354,2690.1,2690.0,0.0433923]
[1724746387562,9.16862577,2690.1,2690.0,0.0433923]
[1724746387764,9.7570185,2690.1,2690.0,0.0433923]
[1724746388064,7.03203496,2690.1,2690.0,0.0433923]
[1724746388314,9.7570185,2690.1,2690.0,0.0433923]
[1724746391597,9.75437039,2690.1,2690.0,0.0433923]
[1724746392711,7.03203496,2690.1,2690.0,0.0433923]
[1724746393509,10.03203496,2690.1,2690.0,0.0433923]
[1724746394291,12.30553496,2690.1,2690.0,0.0433923]
[1724746394905,15.51981404,2690.1,2690.0,0.0433923]
[1724746395211,15.51978966,2690.1,2690.0,0.0433923]
[1724746395573,15.45766496,2690.1,2690.0,0.0433923]
[1724746395730,19.3116228,2690.1,2690.0,0.0433923]
[1724746396331,20.0116228,2690.1,2690.0,0.0433923]
[1724746396820,16.15766496,2690.1,2690.0,0.0433923]
[1724746400724,18.6656967,2690.1,2690.0,0.0433923]
[1724746400893,15.45766496,2690.1,2690.0,0.0433923]
[1724746402624,18.6656967,2690.1,2690.0,0.0433923]
[1724746402933,2.2735,2689.6,2689.0,2.4426]
[1724746403089,1.23938223,2689.3,2689.0,2.4426]
[1724746403498,2.60285,2689.4,2689.0,2.4426]
[1724746403807,2.60299,2689.3,2689.0,2.4426]
[1724746405273,2.60301,2689.2,2689.0,2.4426]
[1724746405512,3.84239223,2689.2,2689.0,2.4426]
[1724746406017,2.6031,2689.1,2689.0,2.4426]
[1724746412027,3.84239223,2689.2,2689.0,2.4426]
[1724746412253,2.6031,2689.1,2689.0,2.4426]
[1724746412728,2.6031,2689.1,2688.8,2.3009]
[1724746414299,2.60322,2689.0,2688.8,2.3009]
[1724746414640,3.84260223,2689.0,2688.3,2.3009]
[1724746414791,1.23938223,2688.7,2688.3,2.3009]
[1724746416493,2.6034,2688.8,2688.3,2.3009]
[1724746417117,3.84278223,2688.8,2688.3,2.3009]
[1724746417520,2.6034,2688.8,2688.3,2.3009]
[1724746417712,3.84278223,2688.8,2688.3,2.3009]
[1724746418629,3.84306223,2688.5,2688.3,2.3009]
[1724746418880,2.60368,2688.5,2688.3,2.3009]
[1724746420214,3.84290223,2688.7,2688.3,2.3009]
[1724746420419,2.60358,2688.6,2688.3,2.3009]
[1724746421511,4.43096796,2688.8,2688.3,2.3009]
[1724746421714,0.58815573,2688.8,2688.3,3.54028223]
[1724746421916,2.60333,2688.9,2688.4,2.3496]
[1724746422148,2.60342,2688.8,2688.4,2.3496]
[1724746427869,2.60349,2688.7,2688.4,2.3496]
[1724746428236,2.60333,2688.9,2688.4,2.3496]
[1724746428535,11.12252223,2689.1,2688.4,2.3496]
[1724746428536,7.28,2689.1,2688.7,1.23938223]
[1724746428760,2.60294,2689.3,2688.8,2.409]
[1724746431135,2.60282,2689.4,2688.8,2.409]
[1724746431338,5.99165859,2689.5,2688.8,2.409]
[1724746431339,7.23104082,2689.5,2688.9,2.409]
[1724746431542,3.0,2689.3,2688.9,2.409]
[1724746431862,5.60282,2689.4,2688.9,2.409]
[1724746432196,3.0,2689.4,2688.9,2.409]
[1724746432350,5.60282,2689.4,2688.9,2.409]
[1724746432547,5.60282,2689.4,2689.0,2.409]
[1724746433049,2.60261,2689.6,2689.0,2.409]
[1724746433220,1.23938223,2689.7,2688.9,1.937429]
[1724746433221,2.60253,2689.7,2689.2,2.409]
[1724746433423,2.60253,2689.7,2688.9,0.69804677]
[1724746433424,2.60253,2689.7,2689.4,2.409]
[1724746433623,2.60263,2689.6,2689.4,2.409]
[1724746435560,5.20542,2689.5,2689.4,2.409]
[1724746435768,5.20542,2689.5,2689.2,2.409]
[1724746435769,2.60292,2689.3,2689.2,2.409]
[1724746437035,2.60282,2689.4,2689.2,2.409]
[1724746438751,2.60271,2689.5,2689.2,2.409]
[1724746439173,2.60252,2689.7,2689.2,2.409]
[1724746439477,2.60261,2689.6,2689.2,2.409]
[1724746439782,5.20513,2689.7,2689.2,2.409]
[1724746440087,2.60252,2689.7,2689.2,2.409]
[1724746440387,2.60271,2689.5,2689.2,2.409]
[1724746441223,2.60263,2689.6,2689.2,2.409]
[1724746442189,2.60252,2689.7,2689.2,2.409]
[1724746442887,3.84205223,2689.6,2689.2,2.409]
[1724746443177,2.60254,2689.7,2689.2,3.64838223]
[1724746443378,2.60254,2689.7,2689.3,2.4062]
[1724746444155,9.88234,2689.9,2689.3,3.03106422]
[1724746444411,9.88234,2689.9,2689.4,3.64558223]
[1724746444634,9.88234,2689.9,2689.5,2.4062]
[1724746445174,9.88234,2689.9,2689.6,1.23938223]
[1724746445175,7.28,2689.9,2689.6,1.23938223]
[1724746445385,2.60223,2690.0,2689.7,2.4062]
[1724746446583,12.59773198,2690.3,2689.7,2.4062]
[1724746446584,2.60209,2690.2,2689.7,2.4062]
[1724746446790,9.88197,2690.3,2689.7,2.4062]
[1724746446791,2.60214,2690.1,2689.7,2.4062]
[1724746447806,2.60224,2690.0,2689.7,2.4062]
[1724746450083,2.60214,2690.1,2689.7,2.4062]
[1724746452898,2.60205,2690.2,2689.7,2.4062]
[1724746455615,2.60203,2690.2,2689.7,2.4062]
[1724746455833,2.60203,2690.2,2689.8,2.39]
[1724746462189,2.60215,2690.1,2689.8,2.39]
[1724746462424,2.6023,2690.0,2689.8,2.39]
[1724746463559,2.60232,2689.9,2689.8,2.39]